Workbook

Sheet Założenia finansowe
B4: Założenia odnośnie prac ziemnych
C5: j. | E5: źródło danych o kosztach
B6: Prace ziemne | C6: zł/km2 | D6: 82000 | E6: Sekocenbud - BCA BCD BCP - broszura- III kw. 2022
B9: Założenia do kosztów nawierzchni dla rowerzystów
C10: j. | D10: asfalt/bitumiczna | E10: beton | F10: kostka betonowa | G10: gruntowa ulepszona | H10: Płyty rowerowe | I10: źródło danych o kosztach
B11: koszt łączny | C11: zł/km2 | D11: 211000 | E11: 204500 | F11: 282000 | G11: 134000 | H11: =296000*C25 -> 351894.4623 | I11: Sekocenbud - BCA BCD BCP - broszura- III kw. 2022
B12: koszt krawęźników | C12: zł/km | D12: 124000 | E12: 124000 | F12: 124000 | G12: 124000 | H12: 0 | I12: Sekocenbud - BCA BCD BCP - broszura- III kw. 2022
B15: Założenia do kosztów oznakowania
B16: Oznakowanie trasy | C16: j. | E16: Źródło danych o kosztach
B17: Cena 1 oznakowania pionowego | C17: zł | D17: 610 | E17: Sekocenbud - BCA BCD BCP - broszura- III kw. 2022
B18: Odległość między znakami | C18: m | D18: 500 | E18: Sekocenbud - BCA BCD BCP - broszura- III kw. 2022
B19: Cena 1 oznakowania pionowego | C19: zł/km | D19: 305 | E19: Sekocenbud - BCA BCD BCP - broszura- III kw. 2022
B22: Przeliczenie rowerowych płyt yomb
B23: Koszt płyty yomb | C23: 65.19
B24: Koszt rowerowej płyty yomb | C24: 77.5
B25: wskaźnik przeliczeniowy | C25: =C24/C23 -> 1.188832643
B27: Przeliczniki na 1 km | C27: Szerokość (m)
C28: 2 | D28: 2.5 | E28: 3 | F28: 3.5 | G28: 4 | H28: 5
B29: Prace ziemne | C29: =$D$6*C28 -> 164000 | D29: =$D$6*D28 -> 205000 | E29: 246000 | F29: 287000 | G29: 328000 | H29: 410000
B30: Oznakowanie | C30: =$D$19 -> 305 | D30: =$D$19 -> 305 | E30: 305 | F30: 305 | G30: 305 | H30: 305
B31: Nawierzchnia
B32: asfalt/bitumiczna | C32: =$D$11*C28 -> 422000 | D32: =$D$11*D28 -> 527500 | E32: 633000 | F32: 738500 | G32: 844000 | H32: 1055000
B33: beton | C33: =$E$11*C28 -> 409000 | D33: =$E$11*D28 -> 511250 | E33: 613500 | F33: 715750 | G33: 818000 | H33: 1022500
B34: kostka betonowa | C34: =$F$11*C28 -> 564000 | D34: =$F$11*D28 -> 705000 | E34: 846000 | F34: 987000 | G34: 1128000 | H34: 1410000
B35: gruntowa ulepszona | C35: =$G$11*C28 -> 268000 | D35: =$G$11*D28 -> 335000 | E35: 402000 | F35: 469000 | G35: 536000 | H35: 670000
B36: Płyty rowerowe | C36: =$H$11*C28 -> 703788.9247 | D36: =$H$11*D28 -> 879736.1559 | E36: 1055683.387 | F36: 1231630.618 | G36: 1407577.849 | H36: 1759472.312
B37: Krawęźniki
B38: asfalt/bitumiczna | C38: =$D$12 -> 124000 | D38: =$D$12 -> 124000 | E38: 124000 | F38: 124000 | G38: 124000 | H38: 124000
B39: beton | C39: =$E$12 -> 124000 | D39: =$E$12 -> 124000 | E39: 124000 | F39: 124000 | G39: 124000 | H39: 124000
B40: kostka betonowa | C40: =$F$12 -> 124000 | D40: =$F$12 -> 124000 | E40: 124000 | F40: 124000 | G40: 124000 | H40: 124000
B41: gruntowa ulepszona | C41: =$G$12 -> 124000 | D41: =$G$12 -> 124000 | E41: 124000 | F41: 124000 | G41: 124000 | H41: 124000
B42: Płyty rowerowe | C42: =$H$12 -> 0 | D42: =$H$12 -> 0 | E42: 0 | F42: 0 | G42: 0 | H42: 0
B43: Suma całkowita
B44: asfalt/bitumiczna | C44: =C29+C30+C32+C38 -> 710305 | D44: =D29+D30+D32+D38 -> 856805 | E44: 1003305 | F44: 1149805 | G44: 1296305 | H44: 1589305
B45: beton | C45: =C29+C30+C33+C39 -> 697305 | D45: =D29+D30+D33+D39 -> 840555 | E45: 983805 | F45: 1127055 | G45: 1270305 | H45: 1556805
B46: kostka betonowa | C46: =C29+C30+C34+C40 -> 852305 | D46: =D29+D30+D34+D40 -> 1034305 | E46: 1216305 | F46: 1398305 | G46: 1580305 | H46: 1944305
B47: gruntowa ulepszona | C47: =C29+C30+C35+C41 -> 556305 | D47: =D29+D30+D35+D41 -> 664305 | E47: 772305 | F47: 880305 | G47: 988305 | H47: 1204305
B48: Płyty rowerowe | C48: =C29+C36+C30+C42 -> 868093.9247 | D48: =D29+D36+D30+D42 -> 1085041.156 | E48: 1301988.387 | F48: 1518935.618 | G48: 1735882.849 | H48: 2169777.312

Sheet Szacunkowe koszty odcinków
A1: Numeracja PTR 2 | B1: Wnioskodawca | C1: Zakres prac | D1: Docelowa nawierzchnia | E1: Długość (km) | F1: Szerokość (m) | G1: Prace ziemne | H1: Nawierzchnia | I1: Krawężniki | J1: Oznakowanie | K1: suma | L1: na 1 km
A2: EV9_WTR_1-2 | B2: Gmina Gniew | C2: Modernizacja drogi | D2: Kruszywo | E2: 2.7 | F2: 2 | G2: 442800 | H2: 723600 | I2: 334800 | J2: 823.5 | K2: 1502023.5 | L2: 556305
A3: EV9_WTR_3-4 | B3: Gmina Gniew | C3: Modernizacja drogi | D3: Asfalt | E3: 1.7 | F3: 4 | G3: 557600 | H3: 1434800 | I3: 210800 | J3: 518.5 | K3: 2203718.5 | L3: 1296305
A4: EV9_WTR_4a-5 | B4: Gmina Gniew | C4: Budowa przejazdu rowerowego | D4: Asfalt | E4: 0.1 | F4: 3 | G4: 24600 | H4: 63300 | I4: 12400 | J4: 30.5 | K4: 100330.5 | L4: 1003305
A5: EV9_WTR_5-6a | B5: Gmina Gniew | C5: Budowa ciągu pieszo-rowerowego | D5: Asfalt | E5: 7.5 | F5: 3 | G5: 1845000 | H5: 4747500 | I5: 930000 | J5: 2287.5 | K5: 7524787.5 | L5: 1003305
A6: EV9_WTR_6a-6 | B6: Gmina Gniew | C6: Modernizacja drogi | D6: Asfalt | E6: 0.3 | F6: 3 | G6: 73800 | H6: 189900 | I6: 37200 | J6: 91.5 | K6: 300991.5 | L6: 1003305
A7: EV9_WTR_6-7 | B7: Gmina Gniew | C7: Modernizacja drogi | D7: Kostka niefazowana | E7: 0.4 | F7: 3.5 | G7: 114800 | H7: 394800 | I7: 49600 | J7: 122 | K7: 559322 | L7: 1398305
A8: EV9_WTR_7-8 | B8: Gmina Gniew | C8: Modernizacja drogi | D8: Kruszywo | E8: 0.8 | F8: 3 | G8: 196800 | H8: 321600 | I8: 99200 | J8: 244 | K8: 617844 | L8: 772305
A9: EV9_WTR_8-10a | B9: Gmina Gniew | C9: Modernizacja drogi | D9: Asfalt | E9: 0.95 | F9: 5 | G9: 389500 | H9: 1002250 | I9: 117800 | J9: 289.75 | K9: 1509839.75 | L9: 1589305
A10: EV9_WTR_10a-10 | B10: Gmina Gniew | C10: Budowa ciągu pieszo-rowerowego | D10: Asfalt | E10: 1.4 | F10: 3 | G10: 344400 | H10: 886200 | I10: 173600 | J10: 427 | K10: 1404627 | L10: 1003305
A11: EV9_WTR_14-15 | B11: Gmina Subkowy | C11: Budowa drogi rowerowej | D11: Asfalt | E11: 2.2 | F11: 2.5 | G11: 451000 | H11: 1160500 | I11: 272800 | J11: 671 | K11: 1884971 | L11: 856805
A12: EV9_WTR_67-68a | B12: Gmina Sadlinki | C12: Budowa ciągu pieszo-rowerowego | D12: Asfalt | E12: 1.35 | F12: 3 | G12: 332100 | H12: 854550 | I12: 167400 | J12: 411.75 | K12: 1354461.75 | L12: 1003305
A13: EV9_WTR_68a-68b | B13: Gmina Sadlinki | C13: Budowa ciągu pieszo-rowerowego | D13: Asfalt | E13: 2.41 | F13: 3 | G13: 592860 | H13: 1525530 | I13: 298840 | J13: 735.05 | K13: 2417965.05 | L13: 1003305
A14: EV9_WTR_68b-68c | B14: Gmina Sadlinki | C14: Budowa ciągu pieszo-rowerowego | D14: Asfalt | E14: 2.58 | F14: 3 | G14: 634680 | H14: 1633140 | I14: 319920 | J14: 786.9 | K14: 2588526.9 | L14: 1003305
A15: EV9_WTR_68c-68 | B15: Gmina Sadlinki | C15: Budowa ciągu pieszo-rowerowego | D15: Asfalt | E15: 1.48 | F15: 3 | G15: 364080 | H15: 936840 | I15: 183520 | J15: 451.4 | K15: 1484891.4 | L15: 1003305
A16: EV9_WTR_72-73 | B16: Gmina Kwidzyn | C16: Modernizacja ciągu pieszo-rowerowego | D16: Asfalt | E16: 4 | F16: 3 | G16: 984000 | H16: 2532000 | I16: 496000 | J16: 1220 | K16: 4013220 | L16: 1003305
A17: EV9_WTR_76a-76 | B17: Gmina Kwidzyn | C17: Budowa ciągu pieszo-rowerowego | D17: Asfalt | E17: 3.1 | F17: 3 | G17: 762600 | H17: 1962300 | I17: 384400 | J17: 945.5 | K17: 3110245.5 | L17: 1003305
A18: EV9_WTR_76-77a | B18: Gmina Ryjewo | C18: Budowa ciągu pieszo-rowerowego | D18: Bitumiczna | E18: 1.8 | F18: 3 | G18: 442800 | H18: 1139400 | I18: 223200 | J18: 549 | K18: 1805949 | L18: 1003305
A19: EV9_WTR_77a-77 | B19: Gmina Ryjewo | C19: Budowa ciągu pieszo-rowerowego | D19: Bitumiczna | E19: 1.3 | F19: 2.5 | G19: 266500 | H19: 685750 | I19: 161200 | J19: 396.5 | K19: 1113846.5 | L19: 856805
A20: EV9_WTR_77-78 | B20: Gmina Sztum | C20: Budowa drogi dla rowerów | D20: Asfalt | E20: 2.9 | F20: 2.5 | G20: 594500 | H20: 1529750 | I20: 359600 | J20: 884.5 | K20: 2484734.5 | L20: 856805
A21: EV9_WTR_78a-78 | B21: Gmina Sztum | C21: Budowa drogi dla rowerów | D21: Asfalt | E21: 1.1 | F21: 2.5 | G21: 225500 | H21: 580250 | I21: 136400 | J21: 335.5 | K21: 942485.5 | L21: 856805
A22: EV9_WTR_78-79a | B22: Gmina Miłoradz | C22: Budowa drogi dla rowerów | D22: beton | E22: 3.5 | F22: 2.5 | G22: 717500 | H22: 1789375 | I22: 434000 | J22: 1067.5 | K22: 2941942.5 | L22: 840555
A23: EV9_WTR_79a-79 | B23: Gmina Miłoradz | C23: Budowa drogi dla rowerów | D23: beton | E23: 4.7 | F23: 2.5 | G23: 963500 | H23: 2402875 | I23: 582800 | J23: 1433.5 | K23: 3950608.5 | L23: 840555
A24: EV9_WTR_81a-81 | B24: Gmina Miłoradz | C24: Budowa drogi dla rowerów | D24: beton | E24: 0.33 | F24: 3 | G24: 81180 | H24: 202455 | I24: 40920 | J24: 100.65 | K24: 324655.65 | L24: 983805
A25: EV9_WTR_82-99 | B25: Gmina Miłoradz | C25: Budowa ciągu pieszo-rowerowego | D25: Asfalt | E25: 1.35 | F25: 3 | G25: 332100 | H25: 854550 | I25: 167400 | J25: 411.75 | K25: 1354461.75 | L25: 1003305
A26: EV9_WTR_83-84 | B26: Gmina Miłoradz | C26: Budowa drogi dla rowerów | D26: Asfalt | E26: 1.28 | F26: 2.5 | G26: 262400 | H26: 675200 | I26: 158720 | J26: 390.4 | K26: 1096710.4 | L26: 856805
A27: EV9_WTR_84-85a | B27: Gmina Lichnowy | C27: Budowa ciągu pieszo-rowerowego | D27: Asfalt | E27: 7.4 | F27: 2.5 | G27: 1517000 | H27: 3903500 | I27: 917600 | J27: 2257 | K27: 6340357 | L27: 856805
A28: EV9_WTR_85b-86 | B28: Gmina Lichnowy | C28: Budowa ciągu pieszo-rowerowego | D28: Asfalt | E28: 1.2 | F28: 2.5 | G28: 246000 | H28: 633000 | I28: 148800 | J28: 366 | K28: 1028166 | L28: 856805
A29: EV9_WTR_88-89 | B29: Gmina Ostaszewo | C29: Budowa drogi dla rowerów | D29: Kostka niefazowana | E29: 1.5 | F29: 2.5 | G29: 307500 | H29: 1057500 | I29: 186000 | J29: 457.5 | K29: 1551457.5 | L29: 1034305
A30: EV9_WTR_90-91 | B30: Gmina Ostaszewo | C30: Budowa drogi dla rowerów | D30: Kostka niefazowana | E30: 4 | F30: 2.5 | G30: 820000 | H30: 2820000 | I30: 496000 | J30: 1220 | K30: 4137220 | L30: 1034305
A31: EV9_WTR_93-94a | B31: Gmina Stegna | C31: Budowa drogi dla rowerów | D31: Bitumiczna | E31: 3.5 | F31: 3 | G31: 861000 | H31: 2215500 | I31: 434000 | J31: 1067.5 | K31: 3511567.5 | L31: 1003305
A32: EV9_WTR_94a-100 | B32: Powiat NDG | C32: Budowa ciągu pieszo-rowerowego | D32: kostka niefazowana | E32: 1.5 | F32: 3 | G32: 369000 | H32: 1269000 | I32: 186000 | J32: 457.5 | K32: 1824457.5 | L32: 1216305
A33: EV10_13_22-24 | B33: Gmina Ustka | C33: Modernizacja drogi | D33: Beton | E33: 1.1 | F33: 3 | G33: 270600 | H33: 674850 | I33: 136400 | J33: 335.5 | K33: 1082185.5 | L33: 983805
A34: EV10_13_24a-24b | B34: Gmina Ustka | C34: Modernizacja drogi | D34: Beton | E34: 0.8 | F34: 3 | G34: 196800 | H34: 490800 | I34: 99200 | J34: 244 | K34: 787044 | L34: 983805
A35: EV10_13_26a-26 | B35: Gmina Ustka | C35: Modernizacja drogi | D35: Beton | E35: 0.95 | F35: 3 | G35: 233700 | H35: 582825 | I35: 117800 | J35: 289.75 | K35: 934614.75 | L35: 983805
A36: EV10_13_26-212 | B36: Gmina Ustka | C36: Modernizacja drogi | D36: Beton | E36: 0.95 | F36: 3 | G36: 233700 | H36: 582825 | I36: 117800 | J36: 289.75 | K36: 934614.75 | L36: 983805
A37: EV10_13_29-212 | B37: Gmina Ustka | C37: Modernizacja drogi | D37: Beton | E37: 3 | F37: 3 | G37: 738000 | H37: 1840500 | I37: 372000 | J37: 915 | K37: 2951415 | L37: 983805
A38: EV10_13_29a-29 | B38: SPN | C38: Modernizacja drogi | D38: Płyty yomb rowerowe | E38: 0.9 | F38: 3 | G38: 221400 | H38: 950115.0483 | I38: 0 | J38: 274.5 | K38: 1171789.548 | L38: 1301988.387
A39: EV10_13_29-30 | B39: Gmina Smołdzino | C39: Modernizacja drogi | D39: Płyty yomb rowerowe | E39: 1.2 | F39: 3 | G39: 295200 | H39: 1266820.064 | I39: 0 | J39: 366 | K39: 1562386.064 | L39: 1301988.387
A40: EV10_13_33-34 | B40: Powiat Słupski | C40: Modernizacja drogi | D40: Beton | E40: 3.5 | F40: 3.5 | G40: 1004500 | H40: 2505125 | I40: 434000 | J40: 1067.5 | K40: 3944692.5 | L40: 1127055
A41: EV10_13_34-35a | B41: Gmina Smołdzino | C41: Modernizacja drogi | D41: Kruszywo | E41: 2.9 | F41: 3 | G41: 713400 | H41: 1165800 | I41: 359600 | J41: 884.5 | K41: 2239684.5 | L41: 772305
A42: EV10_13_35a-35 | B42: SPN | C42: Modernizacja drogi | D42: Płyty yomb rowerowe | E42: 1.2 | F42: 3 | G42: 295200 | H42: 1266820.064 | I42: 0 | J42: 366 | K42: 1562386.064 | L42: 1301988.387
A43: EV10_13_38-37 | B43: Gmina Smołdzino | C43: Modernizacja drogi | D43: Asfalt | E43: 0.6 | F43: 3 | G43: 147600 | H43: 379800 | I43: 74400 | J43: 183 | K43: 601983 | L43: 1003305
A44: EV10_13_39-38 | B44: Gmina Smołdzino | C44: Modernizacja drogi | D44: Kruszywo | E44: 0.9 | F44: 3 | G44: 221400 | H44: 361800 | I44: 111600 | J44: 274.5 | K44: 695074.5 | L44: 772305
A45: EV10_13_41a-42 | B45: Powiat Słupski | C45: Budowa ciągu pieszo-rowerowego | D45: Asfalt | E45: 11.4 | F45: 3 | G45: 2804400 | H45: 7216200 | I45: 1413600 | J45: 3477 | K45: 11437677 | L45: 1003305
A46: EV10_13_42-43 | B46: Powiat słupski | C46: Modernizacja drogi | D46: Beton | E46: 2.1 | F46: 3.5 | G46: 602700 | H46: 1503075 | I46: 260400 | J46: 640.5 | K46: 2366815.5 | L46: 1127055
A47: EV10_13_44-45 | B47: SPN | C47: Modernizacja drogi | D47: Kruszywo | E47: 5.5 | F47: 3 | G47: 1353000 | H47: 2211000 | I47: 682000 | J47: 1677.5 | K47: 4247677.5 | L47: 772305
A48: EV10_13_63-64 | B48: Nadleśnictwo Choczewo | C48: Modernizacja drogi | D48: Kruszywo | E48: 9 | F48: 4 | G48: 2952000 | H48: 4824000 | I48: 1116000 | J48: 2745 | K48: 8894745 | L48: 988305
A49: EV10_13_72-73a | B49: Gmina Krokowa | C49: Modernizacja drogi | D49: Kostka niefazowana | E49: 0.07 | F49: 4 | G49: 22960 | H49: 78960 | I49: 8680 | J49: 21.35 | K49: 110621.35 | L49: 1580305
A50: EV10_13_73a-73 | B50: Gmina Krokowa | C50: Modernizacja drogi | D50: Kostka niefazowana | E50: 0.59 | F50: 4 | G50: 193520 | H50: 665520 | I50: 73160 | J50: 179.95 | K50: 932379.95 | L50: 1580305
A51: EV10_13_76-77a | B51: Gmina Krokowa | C51: Budowa ciągu pieszo-rowerowego | D51: asfalt | E51: 0.35 | F51: 3 | G51: 86100 | H51: 221550 | I51: 43400 | J51: 106.75 | K51: 351156.75 | L51: 1003305
A52: EV10_13_77a-77 | B52: Gmina Krokowa | C52: Modernizacja drogi | D52: Kostka niefazowana | E52: 1.05 | F52: 4 | G52: 344400 | H52: 1184400 | I52: 130200 | J52: 320.25 | K52: 1659320.25 | L52: 1580305
A53: EV10_13_88-89 | B53: Gmina Puck miasto | C53: Modernizacja drogi dla rowerów | D53: Beton | E53: 1.2 | F53: 2.5 | G53: 246000 | H53: 613500 | I53: 148800 | J53: 366 | K53: 1008666 | L53: 840555
A54: EV10_13_89-90 | B54: Gmina Puck miasto | C54: Modernizacja drogi dla rowerów | D54: Beton | E54: 1 | F54: 2.5 | G54: 205000 | H54: 511250 | I54: 124000 | J54: 305 | K54: 840555 | L54: 840555
A55: EV10_13_92-93 | B55: Gmina Puck miasto | C55: Modernizacja drogi dla rowerów | D55: Beton | E55: 1 | F55: 2.5 | G55: 205000 | H55: 511250 | I55: 124000 | J55: 305 | K55: 840555 | L55: 840555
A56: EV10_13_97-98 | B56: Gmina Puck | C56: Modernizacja drogi | D56: Asfalt | E56: 0.15 | F56: 4 | G56: 49200 | H56: 126600 | I56: 18600 | J56: 45.75 | K56: 194445.75 | L56: 1296305
A57: EV10_13_101-102 | B57: Gmina Puck | C57: Budowa ciągu pieszo-rowerowego | D57: Asfalt | E57: 1.2 | F57: 3 | G57: 295200 | H57: 759600 | I57: 148800 | J57: 366 | K57: 1203966 | L57: 1003305
A58: EV10_13_102-103 | B58: Gmina Puck | C58: Budowa drogi-rowerowej | D58: Asfalt | E58: 2.5 | F58: 2.5 | G58: 512500 | H58: 1318750 | I58: 310000 | J58: 762.5 | K58: 2142012.5 | L58: 856805
A59: EV10_13_108a-108b | B59: Gmina Kosakowo | C59: Budowa drogi rowerowej | D59: Bitumiczna | E59: 0.65 | F59: 2 | G59: 106600 | H59: 274300 | I59: 80600 | J59: 198.25 | K59: 461698.25 | L59: 710305
A60: EV10_13_108b-108 | B60: Gmina Kosakowo | C60: Budowa pasa pieszo-jezdnego | D60: Bitumiczna | E60: 0.18 | F60: 5 | G60: 73800 | H60: 189900 | I60: 22320 | J60: 54.9 | K60: 286074.9 | L60: 1589305
A61: EV10_13_108-316b | B61: Gmina Kosakowo | C61: Budowa pasa pieszo-jezdnego | D61: Bitumiczna | E61: 0.103 | F61: 3.5 | G61: 29561 | H61: 76065.5 | I61: 12772 | J61: 31.415 | K61: 118429.915 | L61: 1149805
A62: EV10_13_190-191 | B62: Gmina Stegna | C62: Budowa drogi rowerowej | D62: Asfalt | E62: 0.23 | F62: 3 | G62: 113160 | H62: 145590 | I62: 28520 | J62: 70.15 | K62: 287340.15 | L62: 1249305
A63: EV10_13_216-217 | B63: Gmina Władysławowo | C63: Modernizacja drogi dla rowerów | D63: Asfalt | E63: 2.4 | F63: 2.5 | G63: 492000 | H63: 1266000 | I63: 297600 | J63: 732 | K63: 2056332 | L63: 856805
A64: EV10_13_217a-217 | B64: Gmina Władysławowo | C64: Budowa drogi rowerowej | D64: Asfalt | E64: 0.8 | F64: 2.5 | G64: 164000 | H64: 422000 | I64: 99200 | J64: 244 | K64: 685444 | L64: 856805
A65: EV10_13_217-218 | B65: Gmina Władysławowo | C65: Modernizacja drogi dla rowerów | D65: Asfalt | E65: 6.9 | F65: 2.5 | G65: 1414500 | H65: 3639750 | I65: 855600 | J65: 2104.5 | K65: 5911954.5 | L65: 856805
A66: EV10_13_221-222 | B66: Gmina Władysławowo | C66: Modernizacja drogi dla rowerów | D66: Asfalt | E66: 0.9 | F66: 2.5 | G66: 184500 | H66: 474750 | I66: 111600 | J66: 274.5 | K66: 771124.5 | L66: 856805
A67: EV10_13_222-223a | B67: Gmina Jastarnia | C67: Modernizacja drogi dla rowerów | D67: Asfalt | E67: 1.54 | F67: 2.5 | G67: 315700 | H67: 812350 | I67: 190960 | J67: 469.7 | K67: 1319479.7 | L67: 856805
A68: EV10_13_223a-223b | B68: Gmina Jastarnia | C68: Modernizacja drogi dla rowerów | D68: Asfalt | E68: 2.75 | F68: 2.5 | G68: 563750 | H68: 1450625 | I68: 341000 | J68: 838.75 | K68: 2356213.75 | L68: 856805
A69: EV10_13_223b-223c | B69: Gmina Jastarnia | C69: Modernizacja drogi dla rowerów | D69: Asfalt | E69: 1.4 | F69: 2.5 | G69: 287000 | H69: 738500 | I69: 173600 | J69: 427 | K69: 1199527 | L69: 856805
A70: EV10_13_224-225a | B70: Gmina Jastarnia | C70: Modernizacja drogi dla rowerów | D70: Asfalt | E70: 0.3 | F70: 3 | G70: 73800 | H70: 189900 | I70: 37200 | J70: 91.5 | K70: 300991.5 | L70: 1003305
A71: EV10_13_225a-225b | B71: Gmina Jastarnia | C71: Modernizacja drogi dla rowerów | D71: Beton | E71: 0.95 | F71: 3 | G71: 233700 | H71: 582825 | I71: 117800 | J71: 289.75 | K71: 934614.75 | L71: 983805
A72: EV10_13_225b-225c | B72: Gmina Jastarnia | C72: Modernizacja drogi dla rowerów | D72: Beton | E72: 0.18 | F72: 2.5 | G72: 36900 | H72: 92025 | I72: 22320 | J72: 54.9 | K72: 151299.9 | L72: 840555
A73: EV10_13_225c-225 | B73: Gmina Jastarnia | C73: Budowa ciągu pieszo-rowerowego | D73: kostka niefazowana | E73: 0.31 | F73: 4.5 | G73: 114390 | H73: 393390 | I73: 38440 | J73: 94.55 | K73: 546314.55 | L73: 1762305
A74: EV10_13_311-312 | B74: Gmina Pruszcz Gdański | C74: Budowa ciągu pieszo-rowerowego | D74: Bitumiczna | E74: 4.275 | F74: 3 | G74: 1051650 | H74: 2706075 | I74: 530100 | J74: 1303.875 | K74: 4289128.875 | L74: 1003305

Sheet Kryteria
A1: Ranga
A2: realizacja odcinka jest kluczowa z całościowego punktu widzenia obejmujacego w szczególności natężenie ruchu rowerowego, potrzeby, ciągłość i inne uwarunkowania w tym planowany rodzaj nawierzchni
A3:  1 punktów – odcinek o niskim priorytecie globalnym uwzględniając m.in natężenie ruchu rowerowego, potrzeby, ciągłość całkowitą i inne uwarunkowania;
A4:  2 punkt – odcinek o średnim priorytecie globalnym uwzględniając m.in natężenie ruchu rowerowego, potrzeby, ciągłość całkowitą i inne uwarunkowania;
A5:  3 punkty - odcinek o wysokim priorytecie globalnym uwzględniając m.in natężenie ruchu rowerowego, potrzeby, ciągłość całkowitą i inne uwarunkowania
